[Event "Stay Safe Play From Home 409"]
[Site "Emanuel Lasker Arena"]
[Date "2020.08.25"]
[Round "6"]
[White "TheCHESSHOUSE"]
[Black "Ao017545"]
[Result "1-0"]
[WhiteElo "2069"]
[BlackElo "1563"]
[Annotator "NA"]
[PlyCount "77"]
[EventDate "2020.08.25"]
[EventType "swiss (blitz)"]
[TimeControl "60"]

1. d4 {[%emt 0:00:01]} e5 {[%emt 0:00:00]} 2. c3 {[%emt 0:00:00]} exd4 {[%emt 0:00:01]} 3. cxd4 {[%emt 0:00:00]} d5 {[%emt 0:00:00]} 4. Nc3 {[%emt 0:00:00]} Nf6 {[%emt 0:00:00]} 5. Nf3 {[%emt 0:00:00]} Bb4 {[%emt 0:00:00]} 6. Bd2 {[%emt 0:00:01]} Ne4 {[%emt 0:00:00]} 7. Nxe4 {[%emt 0:00:01]} dxe4 {[%emt 0:00:01]} 8. Bxb4 {[%emt 0:00:03]} exf3 {[%emt 0:00:01]} 9. exf3 {[%emt 0:00:00]} Nc6 {[%emt 0:00:03]} 10. Qe2+ {[%emt 0:00:05]} Be6 {[%emt 0:00:01]} 11. Bc3 {[%emt 0:00:08]} O-O {[%emt 0:00:06]} 12. Qd2 {[%emt 0:00:03]} Re8 {[%emt 0:00:00]} 13. Be2 {[%emt 0:00:01]} Bc4 {[%emt 0:00:01]} 14. O-O {[%emt 0:00:07]} Rxe2 {[%emt 0:00:01]} 15. Qf4 {[%emt 0:00:01]} Qf6 {[%emt 0:00:04]} 16. Qg3 {[%emt 0:00:01]} Rae8 {[%emt 0:00:03]} 17. d5 {[%emt 0:00:01]} Ne5 {[%emt 0:00:03]} 18. b3 {[%emt 0:00:02]} Bxd5 {[%emt 0:00:05]} 19. f4 {[%emt 0:00:01]} Qg6 {[%emt 0:00:09]} 20. fxe5 {[%emt 0:00:03]} Qxg3 {[%emt 0:00:01]} 21. hxg3 {[%emt 0:00:00]} Rc2 {[%emt 0:00:03]} 22. Rfc1 {[%emt 0:00:02]} Re2 {[%emt 0:00:03]} 23. Bd4 {[%emt 0:00:03]} c6 {[%emt 0:00:03]} 24. Rd1 {[%emt 0:00:04]} a6 {[%emt 0:00:02]} 25. Rd3 {[%emt 0:00:04]} Be4 {[%emt 0:00:01]} 26. Re3 {[%emt 0:00:01]} Bd5 {[%emt 0:00:00]} 27. Rxe2 {[%emt 0:00:01]} Bf3 {[%emt 0:00:02]} 28. gxf3 {[%emt 0:00:01]} Rd8 {[%emt 0:00:00]} 29. Rd2 {[%emt 0:00:01]} Re8 {[%emt 0:00:00]} 30. Be3 {[%emt 0:00:00]} Rf8 {[%emt 0:00:00]} 31. f4 {[%emt 0:00:00]} h6 {[%emt 0:00:00]} 32. Rad1 {[%emt 0:00:00]} Kh8 {[%emt 0:00:01]} 33. Rd8 {[%emt 0:00:00]} Kh7 {[%emt 0:00:01]} 34. Rxf8 {[%emt 0:00:01]} g6 {[%emt 0:00:00]} 35. Rxf7+ {[%emt 0:00:00]} Kg8 {[%emt 0:00:01]} 36. Rdd7 {[%emt 0:00:00]} g5 {[%emt 0:00:01]} 37. Rfe7 {[%emt 0:00:00]} g4 {[%emt 0:00:00]} 38. Rxb7 {[%emt 0:00:00]} Kf8 {[%emt 0:00:00]} 39. Rb8+ {[%emt 0:00:00] Zaman (Lag: Av=0.95s, max=1.6s)} 1-0